[Event "*** Titled Tuesday Blitz"]
[Site "Chess.com"]
[Date "2021.02.09"]
[Round "9"]
[White "Ajedrez_con_German"]
[Black "ZivkovicN"]
[Result "1-0"]
[WhiteElo "2595"]
[BlackElo "2467"]
[TimeControl "180+1"]
[EndTime "11:46:04 PST"]
[Termination "Ajedrez_con_German won by resignation"]

1. c4 {[%clk 0:03:00.9]} 1... Nf6 {[%clk 0:02:59.4]} 2. g3 {[%clk 0:03:00.7]}
2... e6 {[%clk 0:02:58.7]} 3. Bg2 {[%clk 0:03:00.1]} 3... d5 {[%clk 0:02:59.4]}
4. d4 {[%clk 0:02:59.8]} 4... Be7 {[%clk 0:02:59.4]} 5. Nf3 {[%clk 0:02:59.5]}
5... O-O {[%clk 0:02:59.5]} 6. O-O {[%clk 0:02:59.7]} 6... c6 {[%clk 0:03:00.2]}
7. Qc2 {[%clk 0:02:58.8]} 7... b6 {[%clk 0:02:55.6]} 8. Nc3 {[%clk 0:02:53.5]}
8... Bb7 {[%clk 0:02:37.9]} 9. cxd5 {[%clk 0:02:49.8]} 9... cxd5 {[%clk
0:02:37.2]} 10. Bf4 {[%clk 0:02:50]} 10... Nc6 {[%clk 0:02:25.9]} 11. Rfd1
{[%clk 0:02:47.6]} 11... Nh5 {[%clk 0:02:21.5]} 12. Be3 {[%clk 0:02:45.6]} 12...
Nf6 {[%clk 0:02:20.8]} 13. Bf4 {[%clk 0:02:39.4]} 13... Nh5 {[%clk 0:02:18.6]}
14. Be3 {[%clk 0:02:39.5]} 14... Rc8 {[%clk 0:02:14.1]} 15. Rac1 {[%clk
0:02:37.4]} 15... Nf6 {[%clk 0:02:05.7]} 16. Bf4 {[%clk 0:02:34.2]} 16... Na5
{[%clk 0:01:52.1]} 17. Ne5 {[%clk 0:02:29]} 17... Nc4 {[%clk 0:01:47.9]} 18.
Nxc4 {[%clk 0:02:28]} 18... Rxc4 {[%clk 0:01:44]} 19. Bg5 {[%clk 0:02:24.2]}
19... Qd7 {[%clk 0:01:27]} 20. e3 {[%clk 0:02:23.2]} 20... Rfc8 {[%clk
0:01:23.8]} 21. Bf1 {[%clk 0:02:23]} 21... R4c7 {[%clk 0:01:22]} 22. Qb3 {[%clk
0:02:14.1]} 22... Bc6 {[%clk 0:01:13.5]} 23. Bf4 {[%clk 0:02:10.1]} 23... Bd6
{[%clk 0:01:11.7]} 24. Ba6 {[%clk 0:01:58]} 24... Rd8 {[%clk 0:00:55.5]} 25.
Bxd6 {[%clk 0:01:50.9]} 25... Qxd6 {[%clk 0:00:54.6]} 26. Nb5 {[%clk 0:01:47.2]}
26... Bxb5 {[%clk 0:00:51.8]} 27. Bxb5 {[%clk 0:01:48.1]} 27... Rdc8 {[%clk
0:00:49.1]} 28. Rxc7 {[%clk 0:01:47.2]} 28... Rxc7 {[%clk 0:00:45.4]} 29. Bd3
{[%clk 0:01:47.3]} 29... Qc6 {[%clk 0:00:39.9]} 30. Rd2 {[%clk 0:01:36.2]} 30...
Qc1+ {[%clk 0:00:37.2]} 31. Qd1 {[%clk 0:01:36.2]} 31... Qxd1+ {[%clk
0:00:30.7]} 32. Rxd1 {[%clk 0:01:36.5]} 32... Ne8 {[%clk 0:00:31]} 33. Kf1
{[%clk 0:01:34.4]} 33... Nd6 {[%clk 0:00:31.2]} 34. Ke2 {[%clk 0:01:25.9]} 34...
f5 {[%clk 0:00:31.3]} 35. f3 {[%clk 0:01:22.8]} 35... Kf7 {[%clk 0:00:31.2]} 36.
b3 {[%clk 0:01:21.2]} 36... Kf6 {[%clk 0:00:30.9]} 37. Kd2 {[%clk 0:01:20.7]}
37... g5 {[%clk 0:00:30.1]} 38. g4 {[%clk 0:01:13.4]} 38... h5 {[%clk 0:00:26]}
39. gxf5 {[%clk 0:01:07.5]} 39... exf5 {[%clk 0:00:21.7]} 40. h3 {[%clk
0:01:08]} 40... g4 {[%clk 0:00:19]} 41. fxg4 {[%clk 0:01:05.4]} 41... fxg4
{[%clk 0:00:19.3]} 42. hxg4 {[%clk 0:00:55.6]} 42... hxg4 {[%clk 0:00:18.9]} 43.
Rf1+ {[%clk 0:00:54.7]} 43... Kg5 {[%clk 0:00:17.5]} 44. Rf8 {[%clk 0:00:54.8]}
44... Rg7 {[%clk 0:00:15.3]} 45. Rd8 {[%clk 0:00:54.6]} 45... Ne4+ {[%clk
0:00:10.9]} 46. Bxe4 {[%clk 0:00:45.4]} 46... dxe4 {[%clk 0:00:11]} 47. Ke2
{[%clk 0:00:45.2]} 47... g3 {[%clk 0:00:10.5]} 48. Re8 {[%clk 0:00:18.7]} 48...
Rf7 {[%clk 0:00:05.6]} 49. Rxe4 {[%clk 0:00:16]} 49... g2 {[%clk 0:00:05.6]} 50.
Re8 {[%clk 0:00:14.9]} 50... Kh4 {[%clk 0:00:05.9]} 51. Rh8+ {[%clk 0:00:14.6]}
51... Kg3 {[%clk 0:00:06.1]} 52. Rg8+ {[%clk 0:00:15]} 52... Kh3 {[%clk
0:00:07]} 53. Kd3 {[%clk 0:00:15]} 53... Rf1 {[%clk 0:00:06.4]} 54. d5 {[%clk
0:00:14.8]} 54... g1=Q {[%clk 0:00:06.1]} 55. Rxg1 {[%clk 0:00:14.3]} 55... Rxg1
{[%clk 0:00:07]} 56. Ke4 {[%clk 0:00:13.6]} 56... Kg4 {[%clk 0:00:07.2]} 57. Ke5
{[%clk 0:00:14]} 57... Kg5 {[%clk 0:00:06.8]} 58. e4 {[%clk 0:00:14.3]} 58...
Rd1 {[%clk 0:00:05]} 59. d6 {[%clk 0:00:11.4]} 59... Rd2 {[%clk 0:00:05.5]} 60.
Ke6 {[%clk 0:00:11.2]} 60... Kf4 {[%clk 0:00:06.1]} 61. e5 {[%clk 0:00:11]}
61... Rd5 {[%clk 0:00:06.6]} 62. d7 {[%clk 0:00:11.1]} 62... Rxe5+ {[%clk
0:00:07.1]} 63. Kd6 {[%clk 0:00:11.6]} 63... Re4 {[%clk 0:00:06.8]} 64. d8=Q
{[%clk 0:00:11.2]} 64... Rd4+ {[%clk 0:00:07.3]} 65. Kc7 {[%clk 0:00:11.9]}
65... Rxd8 {[%clk 0:00:08.2]} 66. Kxd8 {[%clk 0:00:12.8]} 66... Ke3 {[%clk
0:00:08.8]} 67. Kc7 {[%clk 0:00:13.3]} 67... Kd2 {[%clk 0:00:09.7]} 68. Kb7
{[%clk 0:00:13.9]} 68... Kc3 {[%clk 0:00:10.3]} 69. Kxa7 {[%clk 0:00:14.2]}
69... Kb2 {[%clk 0:00:10.7]} 70. Kxb6 {[%clk 0:00:14.3]} 70... Kxa2 {[%clk
0:00:10.6]} 71. b4 {[%clk 0:00:14.9]} 71... Kb3 {[%clk 0:00:11.5]} 72. b5 {[%clk
0:00:15.3]} 72... Kb4 {[%clk 0:00:12.4]} 1-0

[Event "*** Titled Tuesday Blitz"]
[Site "Chess.com"]
[Date "2021.02.09"]
[Round "9"]
[White "Chuchofrio1"]
[Black "NikolaMa2000"]
[Result "1-0"]
[WhiteElo "2307"]
[BlackElo "1877"]
[TimeControl "180+1"]
[EndTime "11:46:04 PST"]
[Termination "Chuchofrio1 won on time"]

1. e4 {[%clk 0:03:00.9]} 1... e6 {[%clk 0:02:59.7]} 2. d4 {[%clk 0:03:00.7]}
2... d5 {[%clk 0:02:59.4]} 3. Nc3 {[%clk 0:03:01.3]} 3... Nf6 {[%clk 0:02:58.3]}
4. Bg5 {[%clk 0:03:01.6]} 4... dxe4 {[%clk 0:02:58.1]} 5. Nxe4 {[%clk
0:03:02.5]} 5... Be7 {[%clk 0:02:58.7]} 6. Nxf6+ {[%clk 0:03:02.3]} 6... Bxf6
{[%clk 0:02:58.6]} 7. Bxf6 {[%clk 0:03:02.9]} 7... Qxf6 {[%clk 0:02:58.8]} 8.
Bd3 {[%clk 0:03:03.1]} 8... c5 {[%clk 0:02:58.9]} 9. Nf3 {[%clk 0:03:02.7]} 9...
Nc6 {[%clk 0:02:56.1]} 10. c3 {[%clk 0:03:01.9]} 10... cxd4 {[%clk 0:02:53.4]}
11. cxd4 {[%clk 0:03:02.8]} 11... O-O {[%clk 0:02:50]} 12. O-O {[%clk 0:03:02]}
12... e5 {[%clk 0:02:47.7]} 13. dxe5 {[%clk 0:03:01.8]} 13... Nxe5 {[%clk
0:02:47.8]} 14. Nxe5 {[%clk 0:03:01.9]} 14... Qxe5 {[%clk 0:02:47.9]} 15. Re1
{[%clk 0:03:01.9]} 15... Qxb2 {[%clk 0:02:41.6]} 16. Rb1 {[%clk 0:02:48.5]}
16... Qf6 {[%clk 0:02:38.5]} 17. Qb3 {[%clk 0:02:42.2]} 17... b6 {[%clk
0:02:33]} 18. Be4 {[%clk 0:02:41.7]} 18... Rb8 {[%clk 0:02:22.6]} 19. Qa3 {[%clk
0:02:39.5]} 19... Bb7 {[%clk 0:02:12.3]} 20. Bxb7 {[%clk 0:02:37.2]} 20... Rxb7
{[%clk 0:02:12.2]} 21. Rbc1 {[%clk 0:02:37.1]} 21... g6 {[%clk 0:02:09.4]} 22.
Qa6 {[%clk 0:02:32.7]} 22... Rd7 {[%clk 0:02:02.2]} 23. h3 {[%clk 0:02:30]}
23... Rfd8 {[%clk 0:01:57.3]} 24. Re2 {[%clk 0:02:24.5]} 24... Rd1+ {[%clk
0:01:49.1]} 25. Re1 {[%clk 0:02:23.5]} 25... R1d2 {[%clk 0:01:46.3]} 26. Re2
{[%clk 0:02:22.2]} 26... R8d7 {[%clk 0:01:32.3]} 27. h4 {[%clk 0:01:59.7]} 27...
Kg7 {[%clk 0:01:08.9]} 28. h5 {[%clk 0:01:55.7]} 28... Qd4 {[%clk 0:00:57.1]}
29. Rce1 {[%clk 0:01:50.1]} 29... Rd1 {[%clk 0:00:48.9]} 30. Qc8 {[%clk
0:01:35.3]} 30... Rxe1+ {[%clk 0:00:34.6]} 31. Rxe1 {[%clk 0:01:36.2]} 31... Qd2
{[%clk 0:00:34.1]} 32. Qe8 {[%clk 0:01:25.3]} 32... b5 {[%clk 0:00:31.7]} 33. g3
{[%clk 0:01:23]} 33... b4 {[%clk 0:00:31.1]} 34. Qe5+ {[%clk 0:01:21.4]} 34...
f6 {[%clk 0:00:25.1]} 35. Qe8 {[%clk 0:01:20.1]} 35... Qd6 {[%clk 0:00:21.2]}
36. Re6 {[%clk 0:01:13.4]} 36... Rd8 {[%clk 0:00:14.9]} 37. Rxd6 {[%clk
0:00:50.2]} 37... Rxe8 {[%clk 0:00:14.4]} 38. hxg6 {[%clk 0:00:50.6]} 38... hxg6
{[%clk 0:00:13.9]} 39. Rd7+ {[%clk 0:00:50.9]} 39... Kh6 {[%clk 0:00:13]} 40.
Rxa7 {[%clk 0:00:51.8]} 40... Re1+ {[%clk 0:00:12.7]} 41. Kg2 {[%clk 0:00:51.5]}
41... Rb1 {[%clk 0:00:12.7]} 42. Kf3 {[%clk 0:00:46.3]} 42... Kg5 {[%clk
0:00:12.7]} 43. Ra4 {[%clk 0:00:44.4]} 43... b3 {[%clk 0:00:11.8]} 44. axb3
{[%clk 0:00:43.1]} 44... Rxb3+ {[%clk 0:00:11.8]} 45. Kg2 {[%clk 0:00:42.7]}
45... f5 {[%clk 0:00:11.5]} 46. Rd4 {[%clk 0:00:39.4]} 46... Rb5 {[%clk
0:00:11.3]} 47. Rd6 {[%clk 0:00:39.2]} 47... Rb2 {[%clk 0:00:11]} 48. Kf3 {[%clk
0:00:38.2]} 48... Rb3+ {[%clk 0:00:10.6]} 49. Kg2 {[%clk 0:00:38.7]} 49... Rb2
{[%clk 0:00:10.8]} 50. Rc6 {[%clk 0:00:37.4]} 50... Rd2 {[%clk 0:00:09.8]} 51.
Rc4 {[%clk 0:00:36.3]} 51... Rb2 {[%clk 0:00:09]} 52. Rf4 {[%clk 0:00:36.3]}
52... Kf6 {[%clk 0:00:08.3]} 53. Ra4 {[%clk 0:00:35.2]} 53... Rb5 {[%clk
0:00:04.9]} 54. Kh3 {[%clk 0:00:33.7]} 54... g5 {[%clk 0:00:04.5]} 55. Ra6+
{[%clk 0:00:33]} 55... Ke5 {[%clk 0:00:03.3]} 56. Rg6 {[%clk 0:00:31.2]} 56...
g4+ {[%clk 0:00:03.3]} 57. Kg2 {[%clk 0:00:31.8]} 57... Ke4 {[%clk 0:00:02.5]}
58. Re6+ {[%clk 0:00:31.3]} 58... Kd4 {[%clk 0:00:02.7]} 59. Rf6 {[%clk
0:00:30.6]} 59... Kc4 {[%clk 0:00:03.6]} 60. Rc6+ {[%clk 0:00:27.5]} 60... Kd3
{[%clk 0:00:03.7]} 61. Rd6+ {[%clk 0:00:26.7]} 61... Kc4 {[%clk 0:00:04.1]} 62.
Rd1 {[%clk 0:00:25.8]} 62... Kc3 {[%clk 0:00:02.3]} 63. Kf1 {[%clk 0:00:25.6]}
63... Re5 {[%clk 0:00:01.9]} 64. Rd8 {[%clk 0:00:23.9]} 64... Kc2 {[%clk
0:00:01.9]} 65. f4 {[%clk 0:00:23.6]} 65... Kc3 {[%clk 0:00:02.2]} 66. fxe5
{[%clk 0:00:23.8]} 1-0

[Event "*** Titled Tuesday Blitz"]
[Site "Chess.com"]
[Date "2021.02.09"]
[Round "9"]
[White "Lion-Al-Messi"]
[Black "Mbneu"]
[Result "1-0"]
[WhiteElo "2521"]
[BlackElo "2287"]
[TimeControl "180+1"]
[EndTime "11:46:06 PST"]
[Termination "Lion-Al-Messi won on time"]

1. e4 {[%clk 0:03:00.9]} 1... c5 {[%clk 0:02:58.3]} 2. Nf3 {[%clk 0:03:01]} 2...
Nf6 {[%clk 0:02:58.8]} 3. e5 {[%clk 0:03:00.9]} 3... Nd5 {[%clk 0:02:59.1]} 4.
Nc3 {[%clk 0:03:01.6]} 4... Nxc3 {[%clk 0:02:59.4]} 5. dxc3 {[%clk 0:03:02.5]}
5... e6 {[%clk 0:02:59.3]} 6. Bg5 {[%clk 0:03:01.9]} 6... Qb6 {[%clk 0:02:54.8]}
7. Bd3 {[%clk 0:02:55.2]} 7... Qxb2 {[%clk 0:02:36.6]} 8. O-O {[%clk 0:02:54.4]}
8... Qb6 {[%clk 0:02:35.9]} 9. Rb1 {[%clk 0:02:41.3]} 9... Qc7 {[%clk
0:02:35.3]} 10. Qe2 {[%clk 0:02:38.2]} 10... Nc6 {[%clk 0:02:34.1]} 11. Bf4
{[%clk 0:02:30.9]} 11... Be7 {[%clk 0:02:24.1]} 12. Ng5 {[%clk 0:02:31.2]} 12...
Bxg5 {[%clk 0:02:14.5]} 13. Bxg5 {[%clk 0:02:32.1]} 13... Qxe5 {[%clk
0:02:07.1]} 14. Qg4 {[%clk 0:02:31.6]} 14... h6 {[%clk 0:01:52.9]} 15. Bf4
{[%clk 0:02:29.8]} 15... Qf6 {[%clk 0:01:49.4]} 16. Bd6 {[%clk 0:02:24.2]} 16...
e5 {[%clk 0:01:40.8]} 17. Rfd1 {[%clk 0:02:07.3]} 17... Qxd6 {[%clk 0:01:38.4]}
18. Qxg7 {[%clk 0:02:06.1]} 18... Qf8 {[%clk 0:01:34.4]} 19. Qf6 {[%clk
0:02:05.9]} 19... Rg8 {[%clk 0:01:30.2]} 20. Be4 {[%clk 0:02:01.3]} 20... Qg7
{[%clk 0:01:29.9]} 21. Qd6 {[%clk 0:01:59.1]} 21... Qf8 {[%clk 0:01:28.9]} 22.
Qf6 {[%clk 0:01:58.4]} 22... Qe7 {[%clk 0:01:22.7]} 23. Qxh6 {[%clk 0:01:57.4]}
23... f6 {[%clk 0:01:14.9]} 24. Bd5 {[%clk 0:01:52.3]} 24... Rf8 {[%clk
0:01:12.3]} 25. Qh5+ {[%clk 0:01:51]} 25... Kd8 {[%clk 0:01:12.3]} 26. Qf3
{[%clk 0:01:39.9]} 26... Kc7 {[%clk 0:01:11.8]} 27. h4 {[%clk 0:01:39.4]} 27...
d6 {[%clk 0:01:09.2]} 28. h5 {[%clk 0:01:37.2]} 28... Bd7 {[%clk 0:01:08.8]} 29.
c4 {[%clk 0:01:33.3]} 29... Rab8 {[%clk 0:01:04.6]} 30. Qa3 {[%clk 0:01:32.6]}
30... a6 {[%clk 0:00:53.6]} 31. Qb3 {[%clk 0:01:32.7]} 31... f5 {[%clk 0:00:49]}
32. Qb6+ {[%clk 0:01:31.8]} 32... Kc8 {[%clk 0:00:48.2]} 33. h6 {[%clk
0:01:27.8]} 33... e4 {[%clk 0:00:46.9]} 34. h7 {[%clk 0:01:19.2]} 34... Qxh7
{[%clk 0:00:46.2]} 35. Bxc6 {[%clk 0:01:13.2]} 35... Bxc6 {[%clk 0:00:46.7]} 36.
Rxd6 {[%clk 0:01:13.7]} 36... Qc7 {[%clk 0:00:46.9]} 37. Qxc5 {[%clk 0:01:14]}
37... Bd7 {[%clk 0:00:14]} 38. Qd4 {[%clk 0:01:02.6]} 38... Rd8 {[%clk
0:00:13.2]} 39. Rd1 {[%clk 0:01:00.5]} 39... b6 {[%clk 0:00:12.4]} 40. Qd5
{[%clk 0:00:48.4]} 40... Rb7 {[%clk 0:00:12]} 41. a4 {[%clk 0:00:34.8]} 41...
Qc5 {[%clk 0:00:12.3]} 42. Qf7 {[%clk 0:00:24.6]} 42... Rc7 {[%clk 0:00:11.8]}
43. a5 {[%clk 0:00:20.7]} 43... bxa5 {[%clk 0:00:10.9]} 44. Rxa6 {[%clk
0:00:15.1]} 44... Kb7 {[%clk 0:00:10.4]} 45. Rad6 {[%clk 0:00:14.9]} 45... Kc8
{[%clk 0:00:10.5]} 46. R6d5 {[%clk 0:00:14.4]} 46... Qxc4 {[%clk 0:00:10.1]} 47.
Qe7 {[%clk 0:00:13.2]} 47... Qxc2 {[%clk 0:00:08.2]} 48. g3 {[%clk 0:00:10.6]}
48... e3 {[%clk 0:00:07.6]} 49. Qxe3 {[%clk 0:00:09.3]} 49... Qc6 {[%clk
0:00:06.5]} 50. Qd3 {[%clk 0:00:06.8]} 50... Kb8 {[%clk 0:00:05.8]} 51. Rb1+
{[%clk 0:00:06.2]} 51... Rb7 {[%clk 0:00:05.7]} 52. Rd1 {[%clk 0:00:04]} 52...
Ka7 {[%clk 0:00:04.1]} 53. Rd6 {[%clk 0:00:04.1]} 53... Qb5 {[%clk 0:00:03.4]}
54. Qd4+ {[%clk 0:00:04]} 54... Ka8 {[%clk 0:00:03.1]} 55. Rd5 {[%clk
0:00:04.4]} 55... Qb6 {[%clk 0:00:02.8]} 56. Qd2 {[%clk 0:00:04.8]} 56... Qc6
{[%clk 0:00:02.1]} 57. Rxa5+ {[%clk 0:00:04.3]} 57... Ra7 {[%clk 0:00:01.9]} 58.
Rxa7+ {[%clk 0:00:03.8]} 58... Kxa7 {[%clk 0:00:02.8]} 59. Qa5+ {[%clk
0:00:04.7]} 59... Kb7 {[%clk 0:00:02.7]} 60. Qxd8 {[%clk 0:00:04.1]} 60... Be6
{[%clk 0:00:01.7]} 61. Qe7+ {[%clk 0:00:04.4]} 61... Ka6 {[%clk 0:00:01.5]} 62.
Ra1+ {[%clk 0:00:04.5]} 62... Kb5 {[%clk 0:00:01.6]} 63. Rb1+ {[%clk 0:00:05.1]}
63... Ka6 {[%clk 0:00:01.9]} 64. Qa3+ {[%clk 0:00:04.6]} 1-0

[Event "*** Titled Tuesday Blitz"]
[Site "Chess.com"]
[Date "2021.02.09"]
[Round "9"]
[White "goldihouse"]
[Black "GadimbayliA"]
[Result "0-1"]
[WhiteElo "2544"]
[BlackElo "2835"]
[TimeControl "180+1"]
[EndTime "11:46:09 PST"]
[Termination "GadimbayliA won on time"]

1. c4 {[%clk 0:02:25.5]} 1... Nf6 {[%clk 0:02:56.5]} 2. g3 {[%clk 0:02:26.4]}
2... d5 {[%clk 0:02:56.4]} 3. Bg2 {[%clk 0:02:27.3]} 3... dxc4 {[%clk
0:02:56.3]} 4. Qa4+ {[%clk 0:02:26.2]} 4... c6 {[%clk 0:02:56.7]} 5. Qxc4 {[%clk
0:02:26.8]} 5... g6 {[%clk 0:02:56.6]} 6. b3 {[%clk 0:02:25.4]} 6... Bg7 {[%clk
0:02:57]} 7. Bb2 {[%clk 0:02:26]} 7... O-O {[%clk 0:02:57.9]} 8. Nf3 {[%clk
0:02:26.2]} 8... Be6 {[%clk 0:02:58.4]} 9. Qc2 {[%clk 0:02:26]} 9... Nbd7 {[%clk
0:02:56.1]} 10. O-O {[%clk 0:02:26]} 10... h6 {[%clk 0:02:55.5]} 11. d3 {[%clk
0:02:26]} 11... Nb6 {[%clk 0:02:52.3]} 12. Nbd2 {[%clk 0:02:25.9]} 12... Nbd5
{[%clk 0:02:52.4]} 13. a3 {[%clk 0:02:25.5]} 13... Nb6 {[%clk 0:02:46.7]} 14.
Rfd1 {[%clk 0:02:23]} 14... a5 {[%clk 0:02:46.3]} 15. Rab1 {[%clk 0:02:22]}
15... a4 {[%clk 0:02:45.4]} 16. b4 {[%clk 0:02:22.2]} 16... Nh5 {[%clk 0:02:39]}
17. Rdc1 {[%clk 0:02:21.6]} 17... Bxb2 {[%clk 0:02:38.5]} 18. Qxb2 {[%clk
0:02:22.5]} 18... Ng7 {[%clk 0:02:39]} 19. Ne4 {[%clk 0:02:18.4]} 19... Qb8
{[%clk 0:02:30.6]} 20. Nc5 {[%clk 0:02:17]} 20... Rd8 {[%clk 0:02:29.4]} 21. Qd2
{[%clk 0:02:15.2]} 21... Kh7 {[%clk 0:02:27.3]} 22. Qb2 {[%clk 0:02:07.4]} 22...
Nd7 {[%clk 0:02:25.7]} 23. Ne4 {[%clk 0:02:04.1]} 23... Bd5 {[%clk 0:02:18.6]}
24. Nc3 {[%clk 0:02:03.4]} 24... Bxf3 {[%clk 0:02:18.2]} 25. Bxf3 {[%clk
0:02:04.1]} 25... Nb6 {[%clk 0:02:18.8]} 26. Ne4 {[%clk 0:02:03.1]} 26... Nf5
{[%clk 0:02:18.4]} 27. Bg2 {[%clk 0:02:03.2]} 27... Nd4 {[%clk 0:02:17.5]} 28.
Nc5 {[%clk 0:02:03.3]} 28... Nb5 {[%clk 0:02:14.4]} 29. Qa2 {[%clk 0:02:02.5]}
29... e6 {[%clk 0:02:04.4]} 30. Qb2 {[%clk 0:02:02.1]} 30... Nd7 {[%clk
0:02:02.6]} 31. Ne4 {[%clk 0:02:01.9]} 31... Qe5 {[%clk 0:01:57.8]} 32. Qa2
{[%clk 0:02:01.9]} 32... f5 {[%clk 0:01:52.5]} 33. Nc5 {[%clk 0:02:01.7]} 33...
Nc3 {[%clk 0:01:52.4]} 34. Rxc3 {[%clk 0:01:58.9]} 34... Qxc3 {[%clk 0:01:53.3]}
35. Nxe6 {[%clk 0:01:58.7]} 35... Rg8 {[%clk 0:01:48.1]} 36. Nf4 {[%clk
0:01:48.9]} 36... Rg7 {[%clk 0:01:43.4]} 37. Qe6 {[%clk 0:01:40.5]} 37... Nf8
{[%clk 0:01:40.6]} 38. Qa2 {[%clk 0:01:39.5]} 38... Re8 {[%clk 0:01:39]} 39. h4
{[%clk 0:01:37.5]} 39... Rge7 {[%clk 0:01:37]} 40. Bf3 {[%clk 0:01:33.4]} 40...
Ne6 {[%clk 0:01:25.3]} 41. Nxe6 {[%clk 0:01:33.4]} 41... Rxe6 {[%clk 0:01:26.2]}
42. Rb2 {[%clk 0:01:34.3]} 42... g5 {[%clk 0:01:22.4]} 43. hxg5 {[%clk
0:01:30.8]} 43... hxg5 {[%clk 0:01:23.3]} 44. g4 {[%clk 0:01:22.6]} 44... fxg4
{[%clk 0:01:17.4]} 45. Bxg4 {[%clk 0:01:23.5]} 45... Rf6 {[%clk 0:01:17.8]} 46.
Rb1 {[%clk 0:01:16.9]} 46... Qd4 {[%clk 0:01:12.9]} 47. Bf3 {[%clk 0:01:10.9]}
47... g4 {[%clk 0:01:09.8]} 48. e3 {[%clk 0:00:59.7]} 48... Qe5 {[%clk
0:00:43.7]} 49. Be4+ {[%clk 0:00:58.4]} 49... Kg7 {[%clk 0:00:43.1]} 50. Kg2
{[%clk 0:00:58.7]} 50... Ref8 {[%clk 0:00:43.1]} 51. Rf1 {[%clk 0:00:58]} 51...
Rh6 {[%clk 0:00:42.6]} 52. Qa1 {[%clk 0:00:57.4]} 52... Rh2+ {[%clk 0:00:39.6]}
53. Kg1 {[%clk 0:00:57.4]} 53... Qxa1 {[%clk 0:00:39.9]} 54. Rxa1 {[%clk
0:00:58.3]} 54... Rhxf2 {[%clk 0:00:39.4]} 55. b5 {[%clk 0:00:58.5]} 55... cxb5
{[%clk 0:00:38.1]} 56. Rb1 {[%clk 0:00:58.5]} 56... Ra2 {[%clk 0:00:28.5]} 57.
Rxb5 {[%clk 0:00:58.5]} 57... Rc8 {[%clk 0:00:28.7]} 58. Rxb7+ {[%clk
0:00:58.4]} 58... Kf6 {[%clk 0:00:28.9]} 59. Rb6+ {[%clk 0:00:59]} 59... Kg5
{[%clk 0:00:29]} 60. Rb5+ {[%clk 0:00:58.5]} 60... Kh4 {[%clk 0:00:29.2]} 61.
Rb1 {[%clk 0:00:56.7]} 61... Rxa3 {[%clk 0:00:29.6]} 62. Rb2 {[%clk 0:00:49.8]}
62... Rb3 {[%clk 0:00:29]} 63. Rh2+ {[%clk 0:00:49.2]} 63... Kg5 {[%clk
0:00:28.7]} 64. Bd5 {[%clk 0:00:44.6]} 64... Rc1+ {[%clk 0:00:26.8]} 65. Kf2
{[%clk 0:00:44.5]} 65... Rb2+ {[%clk 0:00:27.7]} 66. Kg3 {[%clk 0:00:45.1]}
66... Rg1+ {[%clk 0:00:28.3]} 67. Rg2 {[%clk 0:00:45.1]} 67... Rbxg2+ {[%clk
0:00:27.4]} 68. Bxg2 {[%clk 0:00:46]} 68... a3 {[%clk 0:00:28.3]} 69. Kf2 {[%clk
0:00:46.1]} 69... Rxg2+ {[%clk 0:00:27.9]} 70. Kxg2 {[%clk 0:00:47]} 70... a2
{[%clk 0:00:28.8]} 0-1